bitfinex/quotes_ETHUSD_20250824
["timestamp","ask_amount","ask_price","bid_price","bid_amount"]
[1756030988255,0.002,4759.8,4759.7,2.89720188]
[1756030989756,0.7605,4759.8,4759.7,2.89720188]
[1756030989930,0.7605,4759.8,4759.7,2.10097275]
[1756030990461,0.002,4759.8,4759.7,2.10097275]
[1756030992424,0.002,4759.8,4759.6,0.001]
[1756030992425,0.7605,4759.8,4759.6,0.001]
[1756030992621,0.4685,4759.7,4759.6,0.001]
[1756030992856,0.7585,4759.7,4759.6,0.001]
[1756030993242,1.20671135,4759.7,4759.6,0.001]
[1756030993551,0.7585,4759.7,4759.6,0.001]
[1756030993768,0.842722,4759.7,4759.6,0.001]
[1756030994179,1.29093335,4759.7,4759.6,0.001]
[1756030994566,0.842722,4759.7,4759.6,0.001]
[1756030994880,3.3919061,4759.7,4759.6,0.001]
[1756030995067,7.28098018,4759.7,4759.6,0.001]
[1756030995471,6.720716,4759.7,4759.6,0.001]
[1756030995981,7.28098018,4759.7,4759.6,0.001]
[1756030996401,6.720716,4759.7,4759.6,0.001]
[1756030997071,7.28098018,4759.7,4759.6,0.001]
[1756030997697,6.720716,4759.7,4759.6,0.001]
[1756030999271,6.3919061,4759.7,4759.6,0.001]
[1756030999815,6.39084112,4759.7,4759.6,0.001]
[1756031001512,6.94939061,4759.7,4759.6,0.001]
[1756031003000,7.27823348,4759.7,4759.6,0.001]
[1756031003304,6.94939061,4759.7,4759.6,0.001]
[1756031004296,6.39084112,4759.7,4759.6,0.001]
[1756031005005,6.71968398,4759.7,4759.6,0.001]
[1756031005368,7.2780633,4759.7,4759.6,0.001]
[1756031007370,10.8200633,4759.7,4759.6,0.001]
[1756031009412,10.49122044,4759.7,4759.6,0.001]
[1756031010005,9.93284112,4759.7,4759.6,0.001]
[1756031011101,10.75159697,4759.7,4759.6,0.001]
[1756031011893,11.49737421,4759.7,4759.6,1e-08]
[1756031012093,10.94537901,4759.7,4759.6,1e-08]
[1756031012293,10.94536795,4759.7,4759.6,1e-08]
[1756031012506,10.75159697,4759.7,4759.6,1e-08]
[1756031012700,10.94533093,4759.7,4759.6,1e-08]
[1756031013207,12.06344512,4759.7,4759.6,1e-08]
[1756031013508,11.27421142,4759.7,4759.6,1e-08]
[1756031014923,2.76114932,4759.3,4759.2,1e-08]
[1756031015080,10.33959007,4759.3,4759.2,1e-08]
[1756031015282,10.50739569,4759.3,4759.2,1e-08]
[1756031015911,10.50739569,4759.3,4759.1,0.041]
[1756031015912,5.76119347,4759.2,4759.1,1e-08]
[1756031016087,6.69799575,4759.2,4759.1,1e-08]
[1756031016298,7.16199575,4759.2,4759.1,1e-08]
[1756031016801,7.4909091,4759.2,4759.1,1e-08]
[1756031017015,8.7539091,4759.2,4759.1,1e-08]
[1756031017191,8.8381811,4759.2,4759.1,1e-08]
[1756031018627,5.76137009,4758.8,4758.7,1e-08]
[1756031018843,5.76137009,4758.8,4758.1,1e-08]
[1756031018844,2.76163507,4758.2,4758.1,1e-08]
[1756031019148,10.04388144,4758.2,4758.1,1e-08]
[1756031019297,10.23188599,4758.2,4758.1,1e-08]
[1756031019505,10.59216244,4758.2,4758.1,1e-08]
[1756031020298,10.69454415,4758.2,4758.1,1e-08]
[1756031020498,10.59216244,4758.2,4758.1,1e-08]
[1756031021093,10.78569921,4758.2,4758.1,1e-08]
[1756031021531,10.59216244,4758.2,4758.1,1e-08]
[1756031021744,10.78569774,4758.2,4758.1,1e-08]
[1756031022105,10.59216244,4758.2,4758.1,1e-08]
[1756031022296,10.78579763,4758.2,4758.1,1e-08]
[1756031022500,12.22967182,4758.2,4758.1,1e-08]
[1756031023899,11.11476996,4758.2,4758.1,1e-08]
[1756031025558,2.76176758,4757.9,4757.7,0.001]
[1756031025703,11.66201395,4757.9,4757.7,0.001]
[1756031025905,12.12601395,4757.9,4757.7,0.001]
[1756031027243,12.31957885,4757.9,4757.8,1e-08]
[1756031030556,13.80644281,4757.9,4757.8,1e-08]
[1756031030930,10.26644281,4757.9,4757.8,1e-08]
[1756031031131,13.80385502,4757.9,4757.8,1e-08]
[1756031031632,12.31599106,4757.9,4757.8,1e-08]
[1756031031838,13.57899106,4757.9,4757.8,1e-08]
[1756031032061,10.04099106,4757.9,4757.8,1e-08]
[1756031032263,9.28069952,4757.9,4757.8,1e-08]
[1756031032446,10.89569952,4757.9,4757.8,1e-08]
[1756031032648,4.16432616,4757.9,4757.8,1e-08]
[1756031032853,7.70232616,4757.9,4757.8,1e-08]
[1756031033162,10.70232616,4757.9,4757.8,1e-08]
[1756031033367,7.16432616,4757.9,4757.8,1e-08]
[1756031033532,10.70432616,4757.9,4757.8,1e-08]
[1756031033862,2.80539605,4757.9,4757.8,1e-08]
[1756031034158,5.60155858,4757.9,4757.8,1e-08]
[1756031034365,8.60155858,4757.9,4757.8,1e-08]
[1756031034526,2.06255858,4757.9,4757.8,1e-08]
[1756031034726,5.156,4757.9,4757.8,1e-08]
[1756031035064,3.539,4757.9,4757.8,1e-08]
[1756031035433,3.539,4757.9,4757.8,2.10181177]
[1756031035645,1.617,4758.7,4758.1,2.101654]
[1756031035854,3.54,4758.6,4758.1,2.10165735]
[1756031036158,3.98600457,4758.5,4757.8,0.42056991]
[1756031036360,1.617,4758.7,4757.8,0.42056991]
[1756031036524,3.54,4758.6,4757.8,0.42056991]
[1756031036726,3.54,4758.6,4758.1,2.10165578]
[1756031036921,3.54,4758.6,4758.3,2.10158901]
[1756031037146,3.54,4758.6,4757.9,2.35418256]
[1756031037352,3.54,4758.6,4757.9,0.25244502]
[1756031037558,1.94587446,4758.7,4758.3,2.10158796]
[1756031037867,1.94587446,4758.7,4757.8,1e-08]
[1756031038175,3.541,4758.6,4758.4,2.10153379]
[1756031038459,1.94587446,4758.7,4758.5,2.1014837]
[1756031038650,3.54,4758.6,4758.4,2.10154357]
[1756031038971,1.94587446,4758.7,4758.5,2.10150257]
[1756031039130,3.54,4758.6,4758.4,0.42032309]
[1756031039470,1.94587446,4758.7,4758.4,2.1015404]
[1756031039471,3.54,4758.5,4758.4,2.1015404]
[1756031040484,1.617,4758.7,4758.6,2.10145841]
[1756031040662,0.42057,4759.3,4758.6,2.10145841]
[1756031040663,1.617,4759.4,4758.9,2.10131846]
[1756031040867,1.617,4759.4,4758.2,0.66]
[1756031041054,1.617,4759.4,4758.5,2.10148795]
[1756031041249,1.617,4759.4,4758.7,2.10141425]
[1756031041250,3.54,4759.3,4758.7,2.10141425]
[1756031041447,3.54,4759.3,4759.2,2.10119347]
[1756031041968,3.542,4759.5,4759.4,2.10110518]
[1756031042665,0.002,4759.7,4759.6,2.10101689]
[1756031043032,3.544,4759.7,4759.6,2.10101689]
[1756031043230,0.002,4759.7,4759.6,2.5212291]
[1756031043431,3.543,4759.7,4759.6,2.5212291]
[1756031043866,3.543,4759.7,4759.6,0.42021221]
[1756031044036,3.543,4759.7,4759.4,2.10110116]
[1756031044235,0.002,4759.7,4759.6,2.10101689]
[1756031044437,3.546,4759.7,4759.6,2.10101689]
[1756031045758,0.002,4759.7,4759.6,2.10101689]
[1756031045971,3.547,4759.7,4759.6,2.10101689]
[1756031046175,3.547,4759.7,4759.6,2.52122725]
[1756031046379,3.547,4759.7,4759.2,2.1011499]
[1756031046597,3.547,4759.7,4758.7,0.1048]
[1756031046876,3.547,4759.7,4758.6,0.2761488]
[1756031046877,0.002,4759.7,4758.6,0.2761488]
[1756031047068,3.544,4759.6,4758.0,2.10172341]
[1756031047263,3.544,4759.6,4759.0,2.10128155]
[1756031047463,3.544,4759.6,4758.1,0.1048]
[1756031047679,3.544,4759.6,4759.2,2.10119044]
[1756031047879,3.544,4759.6,4759.3,2.10114464]
[1756031048453,0.002,4759.7,4759.3,0.42024213]
[1756031048659,3.549,4759.5,4759.4,2.10106422]
[1756031048858,3.549,4759.5,4759.3,2.10114678]
[1756031049059,3.549,4759.5,4758.9,2.10131002]
[1756031049582,3.549,4759.5,4759.0,2.10127879]
[1756031049751,3.549,4759.5,4759.0,0.4202683]
[1756031049951,3.549,4759.5,4758.2,0.66]
[1756031050152,3.549,4759.5,4759.0,2.10126484]
[1756031050352,3.549,4759.5,4758.2,0.66]
[1756031050555,3.549,4759.5,4759.0,2.10125701]
[1756031050754,3.549,4759.5,4758.9,2.10132183]
[1756031050960,0.4515,4759.4,4758.9,2.10132183]
[1756031051375,0.4515,4759.4,4758.9,2.52159985]
[1756031051653,0.4515,4759.3,4758.9,0.42027802]
[1756031051853,1.616,4759.2,4758.9,0.42027802]
[1756031052083,1.616,4759.2,4757.9,0.66]
[1756031052295,1.616,4759.2,4758.8,2.10136394]
[1756031052590,0.2869,4758.9,4758.0,2.10171053]
[1756031052770,0.4515,4758.8,4758.0,2.10171053]
[1756031053101,0.4515,4758.8,4758.1,0.42055571]
[1756031053392,0.4515,4758.8,4758.0,2.10170201]
[1756031053552,0.4515,4758.8,4757.8,0.00100001]
[1756031053553,0.4515,4758.8,4758.1,2.10167562]
[1756031053891,0.4515,4758.8,4758.3,2.10158802]
[1756031054048,0.420555,4758.9,4758.1,2.10163841]
[1756031054398,0.420555,4758.9,4758.1,2.52221355]
[1756031054695,0.4515,4758.8,4758.1,0.42053945]
[1756031054894,0.4515,4758.8,4757.8,0.00100001]
[1756031055051,0.4515,4758.8,4758.1,2.10165698]
[1756031055655,0.78035148,4758.8,4758.1,2.10165698]
[1756031056512,0.78035148,4758.8,4758.2,2.10163469]
[1756031057073,0.78035148,4758.8,4758.3,2.10157685]
[1756031057287,0.4515,4758.7,4757.8,0.00100001]
[1756031057489,3.545,4758.6,4758.2,2.10162922]
[1756031057995,3.9965,4758.6,4758.3,2.10158103]
[1756031058207,3.9965,4758.6,4758.2,2.10162796]
[1756031058403,3.9965,4758.6,4758.3,2.10158878]
[1756031058774,3.9965,4758.6,4758.5,2.10150257]
[1756031058775,3.545,4758.6,4758.5,2.10150257]
[1756031059701,1.616,4759.2,4758.3,2.10157025]
[1756031060010,3.544,4759.1,4759.0,2.10128178]
[1756031060198,1.616,4759.2,4758.9,2.10130524]
[1756031060365,1.616,4759.2,4759.1,2.10123762]
[1756031060564,5.16,4759.2,4759.1,2.10123762]
[1756031061185,1.616,4759.2,4759.1,2.10123762]
[1756031063707,0.002,4759.7,4759.5,2.10105014]
[1756031063906,0.002,4759.7,4759.0,0.21013052]
[1756031064108,0.002,4759.7,4759.6,2.10101689]
[1756031064309,0.002,4759.7,4759.6,2.52123793]
[1756031067719,0.002,4759.7,4759.6,3.18123793]
[1756031067881,0.002,4759.7,4759.6,3.28603793]
[1756031068223,0.002,4759.7,4759.6,2.52123793]
[1756031069605,0.002,4759.7,4759.6,3.18123793]
[1756031069816,0.002,4759.7,4759.6,6.28603793]
[1756031070397,0.002,4759.8,4759.6,6.28603793]
[1756031070398,0.002,4760.2,4760.1,2.7607962]
[1756031070597,1e-08,4760.3,4760.2,5.10075206]
[1756031070903,1e-08,4760.4,4760.3,5.76070793]
[1756031071689,0.002,4760.7,4760.6,5.76057555]
[1756031071923,1e-08,4760.7,4760.6,5.76057555]
[1756031072096,0.04,4761.4,4761.3,2.10026673]
[1756031072288,0.04,4761.4,4761.3,2.76026673]
[1756031072514,0.04,4761.4,4761.3,2.10026673]
[1756031073103,0.04,4761.4,4761.3,2.76026673]
[1756031073315,0.04,4761.4,4761.3,3.25680696]
[1756031080838,0.002,4762.1,4761.7,2.7600903]
[1756031081216,0.43,4762.1,4761.7,2.7600903]
[1756031081622,0.002,4762.1,4761.7,2.7600903]
[1756031081812,0.002,4762.1,4761.7,6.3120903]
[1756031083271,0.002,4762.1,4761.7,6.4168903]
[1756031083417,1e-08,4762.4,4761.8,3.0]
[1756031083615,1e-08,4762.4,4762.3,5.75982571]
[1756031083878,1e-08,4762.4,4762.3,9.41662571]
[1756031084962,1e-08,4762.4,4762.3,9.41762571]
[1756031085123,1e-08,4762.4,4762.3,5.86462571]
[1756031086127,0.42800001,4762.4,4762.3,5.86462571]
[1756031086320,0.42800001,4762.4,4762.3,7.50440146]
[1756031086521,0.42800001,4762.4,4762.3,4.50440146]
[1756031086755,1e-08,4762.4,4762.3,4.50440146]
[1756031086931,0.72450001,4762.4,4762.3,3.84440146]
[1756031087252,0.72450001,4762.4,4762.3,2.09982571]
[1756031091868,0.72450001,4762.4,4762.3,2.10082571]
[1756031092057,1e-08,4762.4,4762.3,2.10082571]
[1756031092752,1e-08,4762.4,4762.3,2.76082571]
[1756031093669,0.42900001,4762.4,4762.3,2.76082571]
[1756031093834,0.42900001,4762.4,4762.3,3.82227988]
[1756031094035,0.72610001,4762.4,4762.3,3.82227988]
[1756031094258,0.29710001,4762.4,4762.3,3.82227988]
[1756031094436,0.72610001,4762.4,4762.3,3.82227988]
[1756031094890,1e-08,4762.4,4762.3,3.82227988]
[1756031095050,0.72610001,4762.4,4762.3,3.82227988]
[1756031096838,1e-08,4762.4,4762.3,3.82227988]
[1756031098276,0.42900001,4762.4,4762.3,3.82227988]
[1756031098479,1e-08,4762.4,4762.3,3.82227988]
[1756031098684,0.72610001,4762.4,4762.3,3.16227988]
[1756031103411,0.72610001,4762.4,4762.3,2.10082571]
[1756031103691,1.17402559,4762.4,4762.3,0.001]
[1756031103907,4.71602559,4762.4,4762.3,0.001]
[1756031105593,5.27319471,4762.4,4762.3,0.001]
[1756031108381,4.71602559,4762.4,4762.3,0.001]
[1756031111404,5.27606094,4762.4,4762.3,0.001]
[1756031112497,5.60466495,4762.4,4762.3,0.001]
[1756031113165,5.0446296,4762.4,4762.3,0.001]
[1756031115909,5.0396296,4762.4,4762.3,2.10082571]
[1756031116065,4.3135296,4762.4,4762.3,2.10082571]
[1756031116271,3.98492559,4762.4,4762.3,2.10082571]
[1756031116552,3.53700001,4762.4,4762.3,2.10082571]
[1756031116676,1e-08,4762.4,4762.3,2.10082571]
[1756031117403,1e-08,4762.4,4762.3,2.52089748]
[1756031123230,1e-08,4762.4,4762.3,6.71489748]
[1756031123730,1e-08,4762.4,4762.3,6.71589748]
[1756031124396,1e-08,4762.4,4762.3,9.71589748]
[1756031124601,1e-08,4762.9,4762.8,3.66]
[1756031124836,1e-08,4762.9,4762.8,8.13696494]
[1756031125038,1e-08,4762.9,4762.8,10.23657021]
[1756031125743,1e-08,4762.9,4762.8,10.34137021]
[1756031127243,1e-08,4762.9,4762.8,10.26697021]
[1756031128295,1e-08,4763.4,4763.3,2.75938488]
[1756031128489,1e-08,4763.4,4763.3,6.78026862]
[1756031128694,1e-08,4763.4,4763.3,6.88506862]
[1756031129198,1e-08,4763.4,4763.3,9.88506862]
[1756031131300,0.04,4764.4,4764.3,2.09894423]
[1756031131498,0.04,4764.4,4764.3,5.63294423]
[1756031131742,0.04,4764.4,4764.3,6.40613983]
[1756031132150,0.486,4764.4,4764.3,6.40613983]
[1756031132356,0.04,4764.4,4764.3,6.40613983]
[1756031132567,0.04,4764.4,4764.3,2.87213983]
[1756031132769,0.04,4764.4,4764.3,6.40513983]
[1756031133381,0.486,4764.4,4764.3,6.40513983]
[1756031133729,0.04,4764.4,4764.3,6.40513983]
[1756031133955,0.04,4764.4,4764.3,7.06513983]
[1756031134157,0.04,4764.4,4764.3,3.53213983]
[1756031134357,0.04,4764.4,4764.3,7.06513983]
[1756031134834,0.486,4764.4,4764.3,7.06513983]
[1756031135343,0.7735,4764.4,4764.3,3.53213983]
[1756031135538,0.7735,4764.4,4764.3,7.06513983]
[1756031136176,0.7735,4764.4,4764.3,6.40513983]
[1756031136347,0.3275,4764.4,4764.3,6.40513983]
[1756031136679,0.7735,4764.4,4764.3,6.40513983]
[1756031136880,0.7735,4764.4,4764.3,2.87213983]
[1756031141354,0.04,4764.4,4764.3,2.87213983]
[1756031141550,0.042,4764.4,4764.3,2.87213983]
[1756031142785,0.042,4764.4,4764.3,3.53213983]
[1756031143099,0.042,4764.4,4764.3,3.63693983]
[1756031144185,1e-08,4764.4,4764.3,6.63693983]
[1756031144390,0.002,4764.9,4764.8,2.75872397]
[1756031144566,0.002,4764.9,4764.8,6.56659637]
[1756031144756,0.002,4764.9,4764.8,6.67139637]
[1756031145154,0.002,4765.3,4765.2,2.7585478]
[1756031145378,0.002,4765.3,4765.2,6.3953478]
[1756031146089,0.002,4765.3,4765.2,2.8633478]
[1756031146259,0.002,4765.3,4765.2,7.12900374]
[1756031147765,0.022,4765.8,4765.5,2.09839582]
[1756031147965,1e-08,4765.8,4765.7,5.75832763]
[1756031148174,1e-08,4765.8,4765.7,10.90525035]
[1756031148707,0.28750001,4765.8,4765.7,7.37325035]
[1756031148864,0.73350001,4765.8,4765.7,10.90525035]
[1756031149561,1e-08,4765.8,4765.7,10.90525035]
[1756031151932,1e-08,4765.8,4765.7,10.91025035]
[1756031152622,1e-08,4765.8,4765.7,10.90925035]
[1756031153013,1e-08,4765.8,4765.7,7.37325035]
[1756031153324,1e-08,4765.8,4765.7,10.90925035]
[1756031153832,1e-08,4765.8,4765.7,10.90825035]
[1756031154927,1e-08,4765.8,4765.7,7.37325035]
[1756031155296,1e-08,4765.8,4765.7,10.90725035]
[1756031155813,1e-08,4765.8,4765.7,7.37325035]
[1756031156019,1e-08,4765.8,4765.7,10.90725035]
[1756031156836,1e-08,4765.8,4765.7,13.12325035]
[1756031157011,1e-08,4765.8,4765.7,10.90725035]
[1756031158936,1e-08,4765.8,4765.7,7.37325035]
[1756031159231,1e-08,4765.8,4765.7,10.90725035]
[1756031159732,1e-08,4765.8,4765.7,7.37325035]
[1756031160239,1e-08,4765.8,4765.7,10.90625035]
[1756031162331,0.44671235,4767.2,4766.2,0.66]
[1756031162332,0.466,4767.2,4766.2,0.66]
[1756031162532,0.466,4767.2,4766.7,2.75788742]
[1756031162742,0.466,4767.2,4766.7,6.39468742]
[1756031163458,0.466,4767.2,4766.7,9.39468742]
[1756031163758,0.44671235,4768.0,4766.7,9.39468742]
[1756031163919,0.466,4767.3,4766.7,9.39468742]
[1756031164255,0.466,4767.3,4767.2,2.75766739]
[1756031164453,0.468,4767.8,4767.3,5.75762339]
[1756031164751,0.002,4767.8,4767.3,5.75762339]
[1756031164938,0.466,4767.7,4767.3,5.75762339]
[1756031165535,0.7939,4767.4,4767.3,5.75762339]
[1756031165850,0.7939,4767.4,4767.3,9.28962339]
[1756031166158,0.7939,4767.4,4767.3,5.75762339]
[1756031166363,0.7939,4767.4,4767.3,9.28862339]
[1756031166518,0.7939,4767.4,4767.3,10.85735998]
[1756031166928,0.3279,4767.4,4767.3,10.85735998]
[1756031167165,0.7939,4767.4,4767.3,7.43115998]
[1756031167332,0.7939,4767.4,4767.3,6.77115998]
[1756031167656,0.7939,4767.4,4767.3,10.30615998]
[1756031168030,0.7939,4767.4,4767.3,6.66635998]
[1756031168237,0.7939,4767.4,4767.3,10.20035998]
[1756031168950,0.7939,4767.4,4767.3,7.20035998]
[1756031169154,0.7939,4767.4,4767.3,3.66635998]
[1756031169371,0.7939,4767.4,4767.3,2.09762339]
[1756031169569,0.7939,4767.4,4767.2,2.09762589]
[1756031169758,0.7939,4767.4,4766.8,0.02]
[1756031169759,0.466,4767.3,4767.1,2.09767883]
[1756031169958,0.2879,4767.2,4767.1,2.09767883]
[1756031170141,0.7539,4767.2,4767.1,2.09767883]
[1756031170782,0.7539,4767.2,4766.9,2.09778919]
[1756031170980,0.466,4767.1,4767.0,2.0977377]
[1756031171167,0.7539,4767.1,4767.0,2.0977377]
[1756031173575,0.7539,4767.1,4766.9,2.09779108]
[1756031173774,0.91376149,4767.0,4766.8,2.11784209]
[1756031173961,0.04,4767.4,4767.0,2.09771177]
[1756031174167,0.44776166,4767.3,4767.0,2.09771177]
[1756031174384,0.2879,4767.1,4767.0,2.09771177]
[1756031174583,1.20166166,4767.1,4767.0,2.09771177]
[1756031175188,1.20166166,4767.1,4766.8,0.02]
[1756031175369,0.91376166,4767.0,4766.8,0.02]
[1756031175553,0.73566166,4766.9,4766.8,0.02]
[1756031175753,1.20166166,4766.9,4766.8,0.02]
[1756031175953,1.83240366,4766.9,4766.8,0.02]
[1756031178065,3.93020306,4766.9,4766.0,2.09817405]
[1756031178363,3.93020306,4766.9,4765.8,0.02]
[1756031178364,0.91376166,4766.8,4766.1,2.09814428]
[1756031178564,0.2879,4766.2,4766.1,2.09814428]
[1756031178870,0.7539,4766.2,4766.1,2.09814428]
[1756031179211,0.7539,4766.2,4765.9,2.09820444]
[1756031179407,0.466,4766.1,4765.8,2.11827249]
[1756031179710,0.2879,4765.9,4765.8,2.11827249]
[1756031180109,0.7539,4765.9,4765.8,2.11827249]
[1756031180599,0.7539,4765.9,4765.8,0.02]
[1756031184345,1.384781,4765.9,4765.8,0.02]
[1756031184646,3.48302057,4765.9,4765.8,0.02]
[1756031185027,1.384781,4765.9,4765.8,0.02]
[1756031186434,3.48302057,4765.9,4765.8,0.02]
[1756031188630,7.01602057,4765.9,4765.8,0.02]
[1756031189141,10.01602057,4765.9,4765.8,0.02]
[1756031189915,10.46271083,4765.9,4765.8,0.02]
[1756031190428,11.12271083,4765.9,4765.8,0.02]
[1756031192339,11.12271083,4765.9,4765.8,0.021]
[1756031193136,11.45112958,4765.9,4765.8,0.021]
[1756031194141,5.75832763,4765.7,4765.6,1e-08]
[1756031194342,7.04827317,4765.7,4765.6,1e-08]
[1756031194734,7.49407317,4765.7,4765.6,1e-08]
[1756031195322,5.75867993,4764.9,4764.8,0.01100001]
[1756031195540,11.19487993,4764.9,4764.8,0.01100001]
[1756031195922,11.64067993,4764.9,4764.8,0.01100001]
[1756031196126,12.05331174,4764.9,4764.8,0.01100001]
[1756031196449,12.49880722,4764.9,4764.8,0.01100001]
[1756031201850,5.75832729,4764.9,4764.8,0.01100001]
[1756031202018,5.56063181,4764.9,4764.8,0.01100001]
[1756031202347,5.232158,4764.9,4764.8,0.01100001]
[1756031202552,8.232158,4764.9,4764.8,0.01100001]
[1756031202965,10.33083793,4764.9,4764.8,0.01100001]
[1756031203120,10.77663793,4764.9,4764.8,0.01100001]
[1756031203321,9.1240933,4764.9,4764.8,0.01100001]
[1756031203537,10.77697323,4764.9,4764.8,0.01100001]
[1756031205140,11.50897323,4764.9,4764.8,0.01100001]
[1756031205350,11.83741701,4764.9,4764.8,0.01100001]
[1756031205538,12.39431651,4764.9,4764.8,0.01100001]
[1756031205950,12.55378152,4764.9,4764.8,0.01100001]
[1756031206150,11.99688202,4764.9,4764.8,0.01100001]
[1756031208357,12.73971949,4764.9,4764.8,0.01100001]
[1756031208552,8.75991949,4764.9,4764.8,0.01100001]
[1756031208751,12.00671949,4764.9,4764.8,0.01100001]
[1756031208968,12.73871949,4764.9,4764.8,0.01100001]
[1756031209359,11.66743824,4764.9,4764.8,0.01100001]
[1756031211350,12.78160367,4764.9,4764.8,0.01100001]
[1756031211556,11.66743824,4764.9,4764.8,0.01100001]
[1756031212068,12.78160367,4764.9,4764.8,0.01100001]
[1756031213089,13.11006828,4764.9,4764.8,0.01100001]
[1756031213246,11.99590285,4764.9,4764.8,0.01100001]
[1756031215490,5.09872397,4764.8,4764.3,0.001]
[1756031215651,5.85265927,4764.8,4764.3,0.001]
[1756031215858,6.28355927,4764.8,4764.3,0.001]
[1756031216254,6.36771527,4764.8,4764.3,0.001]
[1756031218297,6.5647105,4764.8,4764.3,0.001]
[1756031219285,2.09890017,4764.4,4764.3,0.001]
[1756031219495,9.08029583,4764.4,4764.3,0.001]
[1756031219861,9.16445183,4764.4,4764.3,0.001]
[1756031220061,9.49292917,4764.4,4764.3,0.001]
[1756031220594,9.92382917,4764.4,4764.3,0.001]
[1756031221595,7.824929,4764.4,4764.3,0.001]
[1756031221794,9.16445183,4764.4,4764.3,0.001]
[1756031223210,9.59535183,4764.4,4764.3,0.001]
[1756031225785,9.92383047,4764.4,4764.3,0.001]
[1756031226186,11.35532013,4764.4,4764.3,0.001]
[1756031226503,10.23163047,4764.4,4764.3,0.001]
[1756031227625,10.92399842,4764.4,4764.3,0.001]
[1756031227830,11.35489834,4764.4,4764.3,0.001]
[1756031229026,10.23163047,4764.4,4764.3,0.001]
[1756031229399,9.90315183,4764.4,4764.3,0.001]
[1756031231324,10.65191918,4764.4,4764.3,0.001]
[1756031232726,10.98040359,4764.4,4764.3,0.001]
[1756031233125,10.23163624,4764.4,4764.3,0.001]
[1756031233338,10.42663733,4764.4,4764.3,0.001]
[1756031234246,11.08663733,4764.4,4764.3,0.001]
[1756031234460,11.08663733,4764.4,4764.2,0.001]
[1756031234461,5.75894423,4764.3,4764.2,0.001]
[1756031234662,7.14104098,4764.3,4764.2,0.001]
[1756031236120,7.14104098,4764.3,4764.2,1e-08]
[1756031237352,5.75898828,4764.2,4764.1,1e-08]
[1756031237524,10.67408503,4764.2,4764.1,1e-08]
[1756031237725,10.47908394,4764.2,4764.1,1e-08]
[1756031237930,10.67383666,4764.2,4764.1,1e-08]
[1756031239719,10.7905928,4764.2,4764.1,1e-08]
[1756031240230,10.67383666,4764.2,4764.1,1e-08]
[1756031240436,10.79055301,4764.2,4764.1,1e-08]
[1756031241027,10.67383666,4764.2,4764.1,1e-08]
[1756031241551,17.78383666,4764.2,4764.1,1e-08]
[1756031242320,17.04513666,4764.2,4764.1,1e-08]
[1756031242529,17.04513666,4764.2,4764.1,0.00100001]
[1756031242738,17.84127642,4764.2,4764.1,0.00100001]
[1756031243720,10.18067642,4764.2,4764.1,0.00100001]
[1756031243926,14.26562055,4764.2,4764.1,0.00100001]
[1756031244233,13.51857936,4764.2,4764.1,0.00100001]
[1756031244440,4.30959108,4764.2,4764.1,0.00100001]
[1756031244949,7.30959108,4764.2,4764.1,0.00100001]
[1756031246129,3.77659108,4764.2,4764.1,0.00100001]
[1756031246326,9.40857936,4764.2,4764.1,0.00100001]
[1756031246569,3.77659108,4764.2,4764.1,0.00100001]
[1756031246755,7.30959108,4764.2,4764.1,0.00100001]
[1756031246930,9.40857936,4764.2,4764.1,0.00100001]
[1756031248846,5.87557936,4764.2,4764.1,0.00100001]
[1756031249046,9.40857936,4764.2,4764.1,0.00100001]
[1756031249448,9.0800396,4764.2,4764.1,0.00100001]
[1756031250542,9.1641956,4764.2,4764.1,0.00100001]
[1756031252865,9.49270318,4764.2,4764.1,0.00100001]
[1756031256139,10.05278401,4764.2,4764.1,0.00100001]
[1756031258754,10.83008401,4764.2,4764.1,0.00100001]
[1756031258975,11.12459965,4764.2,4764.1,0.00100001]
[1756031259176,12.24487651,4764.2,4764.1,0.00100001]
[1756031259472,11.1248921,4764.2,4764.1,0.00100001]
[1756031259721,2.75912046,4763.9,4763.8,0.021]
[1756031260003,2.7593408,4763.4,4763.3,0.001]
[1756031260166,10.24498104,4763.4,4763.3,0.001]
[1756031260367,10.71258104,4763.4,4763.3,0.001]
[1756031260960,10.79677304,4763.4,4763.3,0.001]
[1756031263869,11.12536999,4763.4,4763.3,0.001]
[1756031264986,11.50956288,4763.4,4763.3,0.001]
[1756031265209,11.39297323,4763.4,4763.3,0.001]
[1756031265576,11.67986606,4763.4,4763.3,0.001]
[1756031267668,41.6794063,4763.4,4763.3,0.001]
[1756031267892,41.79583422,4763.4,4763.3,1e-08]
[1756031268393,41.6794063,4763.4,4763.3,1e-08]
[1756031270963,41.67910436,4763.4,4763.3,1e-08]
[1756031271264,41.35050741,4763.4,4763.3,1e-08]
[1756031273294,40.79601134,4763.4,4763.3,1e-08]
[1756031274081,4.60133661,4763.4,4763.3,1e-08]
[1756031274371,7.23730325,4763.4,4763.3,1e-08]
[1756031274675,10.89730325,4763.4,4763.3,1e-08]
[1756031276174,10.15348452,4763.4,4763.3,1e-08]
[1756031276501,10.89743319,4763.4,4763.3,1e-08]
[1756031277203,10.15348452,4763.4,4763.3,1e-08]
[1756031278502,10.89761508,4763.4,4763.3,1e-08]
[1756031279003,10.15348452,4763.4,4763.3,1e-08]
[1756031279179,10.62548452,4763.4,4763.3,1e-08]
[1756031279512,10.15348452,4763.4,4763.3,1e-08]
[1756031280213,10.93118452,4763.4,4763.3,1e-08]
[1756031281115,10.81934181,4763.4,4763.3,1e-08]
[1756031281324,10.2379202,4763.4,4763.3,1e-08]
[1756031281482,0.86114372,4763.4,4763.3,1e-08]
[1756031281673,3.617192,4763.4,4763.3,1e-08]
[1756031281880,4.06553577,4763.4,4763.3,1e-08]
[1756031282317,3.617192,4763.4,4763.3,1e-08]
[1756031283011,3.617192,4763.4,4763.3,2.09938489]
[1756031283309,3.617192,4763.4,4763.3,0.42399067]
[1756031283610,3.533,4763.4,4763.3,2.52337555]
[1756031284200,0.631138,4763.8,4763.6,2.09924678]